Cogmind - Beta 11 @@@ ROGUE MODE // 2022.03.30 @ 15:24:45 Player: Red Box Result: Destroyed by as-16600 with Assembled Rifle Performance ------------- Evolutions (0) 0 Regions Visited (2) 400 Robots Destroyed (16) 80 Value Destroyed (288) 288 Prototype IDs (5) 100 Alien Tech Used (0) 0 Bonus (0) 0 TOTAL SCORE: 868 Bonus ------- None Cogmind --------- Core Integrity 0/250 Matter 300/300 Energy 280/280 System Corruption 3% Temperature Cool (0) Movement Core (1600) Ox31 Location -10/Mines Parts ------- > --- POWER (1) -------- Cooled Ion Engine > --- PROPULSION (2) --- (None) > --- UTILITY (2) ------ Huge Storage Unit > --- WEAPON (2) ------- Advanced Beam Cannon Hammer > --- INVENTORY (25) --- Cooled Ion Engine Cooled Ion Engine Cooled Ion Engine Improved Treads Improved Treads Improved Treads Improved Treads Improved Aluminum Leg Improved Aluminum Leg Improved Aluminum Leg Improved Aluminum Leg Wheel Compact Wheel High-capacity Matter Pod (193) ECM Suite Propulsion Shielding Light Armor Plating Advanced Beam Cannon Advanced Beam Cannon Autogun Autogun Autogun Autogun Peak State ------------ > --- POWER ------------ Cooled Ion Engine > --- PROPULSION ------- Wheel Wheel > --- UTILITY ---------- Improved Heat Sink Huge Storage Unit > --- WEAPON ----------- Advanced Beam Cannon Advanced Beam Cannon > --- INVENTORY -------- Cooled Ion Engine Cooled Ion Engine Cooled Ion Engine Improved Treads Improved Treads Improved Treads Improved Aluminum Leg Improved Aluminum Leg Improved Aluminum Leg Improved Aluminum Leg Wheel Compact Wheel High-capacity Matter Pod ECM Suite Propulsion Shielding Light Armor Plating Advanced Beam Cannon Advanced Beam Cannon Autogun Autogun Hammer [Rating: 19] Favorites ----------- Power Ion Engine Engine Ion Engine Propulsion Wheel Leg Aluminum Leg Wheel Wheel Utility Improved Heat Sink Device Improved Heat Sink Storage Large Storage Unit Weapon Advanced Beam Cannon Energy Gun Medium Laser Energy Cannon Advanced Beam Cannon Impact Weapon Hammer Build | -11 -10 -10 ------- Run | Scr Mat Min Slots Evolved . | . . . Power . | . . . Propulsion . | . . . Utility . | . . . Weapon . | . . . Parts Attached 23 | 7 15 1 Power 3 | 1 2 . Engine 3 | 1 2 . Core . | . . . Reactor . | . . . Propulsion 6 | 2 4 . Treads . | . . . Leg 2 | 2 . . Wheel 4 | . 4 . Hover . | . . . Flight . | . . . Utility 9 | 2 7 . Device 4 | 1 3 . Storage 5 | 1 4 . Processor . | . . . Hackware . | . . . Protection . | . . . Artifact . | . . . Weapon 5 | 2 2 1 Energy Gun 2 | 2 . . Energy Cannon 2 | . 2 . Ballistic Gun . | . . . Ballistic Cannon . | . . . Launcher . | . . . Special Weapon . | . . . Impact Weapon 1 | . . 1 Slashing Weapon . | . . . Piercing Weapon . | . . . Special Melee Weapon . | . . . Unidentified Prototypes 1 | . 1 . Parts Lost 5 | . 1 4 Power . | . . . Propulsion 3 | . 1 2 Utility 1 | . . 1 Weapon 1 | . . 1 Highest Loss Streak 4 | . 1 4 To Critical Strikes . | . . . Average Slot Usage (%) 99 | . 99 99 Engine 14 | . 14 14 Leg 2 | . 3 . Wheel 25 | . 24 27 Device 13 | . 13 13 Storage 14 | . 14 14 Energy Gun 12 | . 17 . Energy Cannon 15 | . 10 27 Naked Turns . | . . . Heaviest Build 97 | 15 97 97 Greatest Support 20 | 20 20 20 Greatest Overweight (x) 9 | 1 4 9 Average Overweight (x) 1 | . 1 4 Largest Inventory Capacity 25 | 8 25 25 Average Capacity 18 | 6 16 25 Most Carried 24 | 8 24 24 Average Carried 17 | 4 15 23 Final Capacity 25 | 8 25 25 Final Carried 24 | 8 24 23 Class Distribution -------------------- 100% | Mutant Dominant Class ---------------- Mutant | -10/Materials Mutant | -10/Mines Resources | -11 -10 -10 ----------- Run | Scr Mat Min Matter Collected 603 | 197 335 71 Remotely . | . . . Salvage Created 414 | 12 349 53 Parts 30 | 5 20 5 Haulers Intercepted 1 | . 1 . Recyclers Shooed . | . . . Parts Field Recycled . | . . . Retrieved Matter . | . . . Parts Self-Destructed . | . . . Prevented . | . . . Kills | -11 -10 -10 ------- Run | Scr Mat Min Combat Hostiles Destroyed 15 | . 11 4 Guns 10 | . 10 . Cannons 4 | . . 4 Classes Destroyed 6 | 1 4 1 Tunneler 1 | 1 . . Hauler 1 | . 1 . Watcher 1 | . 1 . Swarmer 8 | . 6 2 Grunt 5 | . 5 . Assembled 2 | . . 2 Best Kill Streak 5 | 1 5 2 Combat Bots Only 4 | . 4 2 Max Kills in Single Turn 1 | 1 1 1 Gunslinging . | . . . Exploded . | . . . Melee . | . . . Uniques/NPCs Destroyed . | . . . Combat | -11 -10 -10 -------- Run | Scr Mat Min Damage Taken 1052 | . 309 743 Core 260 | . 67 193 Absorbed by Shields . | . . . Regen/Repaired (Parts) 8 | . 8 . Core Remaining (%) 100 | 100 . . Volleys Fired 66 | 1 56 9 Largest 2 | 2 2 2 Hottest 136 | 100 100 136 Shots Fired 132 | 2 112 18 Gun 114 | 2 112 . Cannon 18 | . . 18 Launcher . | . . . Special . | . . . Kinetic . | . . . Thermal 132 | 2 112 18 Explosive . | . . . Electromagnetic . | . . . Robot Hit Streak 13 | 1 13 2 Robot Miss Streak 6 | . 5 6 Penetration Max . | . . . Secondary Targets . | . . . Shots Hit Robots 69 | 1 62 6 Core Hits 25 | 1 20 4 Critical Kills . | . . . Critical Parts Destroyed . | . . . Critical Strikes 3 | . 3 . Burn 3 | . 3 . Melee Attacks 4 | . . 4 Impact 4 | . . 4 Slashing . | . . . Piercing . | . . . Sneak Attacks . | . . . Combat Hostiles . | . . . Follow-up Attacks . | . . . Damage Inflicted 962 | 12 786 164 Guns 798 | 12 786 . Cannons 103 | . . 103 Explosions . | . . . Melee 61 | . . 61 Ramming . | . . . Kinetic . | . . . Thermal 901 | 12 786 103 Explosive . | . . . Electromagnetic . | . . . Impact 61 | . . 61 Slashing . | . . . Piercing . | . . . Highest Corruption 3 | . . 3 Average Corruption 3 | . . 3 Corruption Purged . | . . . Corruption Blocked . | . . . Overload Shots . | . . . Overflow Damage . | . . . Projectiles . | . . . Explosions . | . . . Melee . | . . . Knockbacks . | . . . Impact . | . . . Kinetic . | . . . Secondary . | . . . Self-Inflicted Damage . | . . . Shots . | . . . Rammed . | . . . Targets Rammed . | . . . Kicked . | . . . Crushed . | . . . Highest Temperature 156 | 39 156 99 Average Temperature 39 | 20 38 47 Received Heat Transfer 105 | . 105 . Siege Activations . | . . . Robots Corrupted . | . . . Combat Hostiles . | . . . Parts Fried . | . . . Impact Corruptions . | . . . Robots Melted 1 | . 1 . Combat Hostiles 1 | . 1 . Parts Melted 6 | . 6 . Heat Transferred 2775 | 37 2553 185 Parts Sabotaged . | . . . Parts Stolen . | . . . Parts Stripped . | . . . Power Chain Reactions . | . . . Missiles Intercepted . | . . . Alert | -11 -10 -10 ------- Run | Scr Mat Min Peak Influence 260 | 5 260 85 Initial 5 | . 3 5 Average 73 | 1 87 49 Maximum Alert Level 1 | . 1 . Low Security (%) 87 | 100 81 100 Level 1 12 | . 18 . Level 2 . | . . . Level 3 . | . . . Level 4 . | . . . Level 5 . | . . . High Security . | . . . Max Security . | . . . Squads Dispatched 1 | . 1 . Investigation . | . . . Extermination . | . . . Reinforcement 1 | . 1 . Assault . | . . . Garrison . | . . . Intercept . | . . . Searches Triggered . | . . . Construction Impeded . | . . . Haulers Reinforced . | . . . Active Scanning Responses . | . . . Cargo Convoy Interrupts . | . . . Stealth | -11 -10 -10 --------- Run | Scr Mat Min Distress Signals 1 | . 1 . Communications Jammed . | . . . Distress Signals . | . . . Times Spotted 39 | . 28 11 Peak Tracking Total 8 | . 4 8 Tactical Retreats 2 | . 1 1 Traps | -11 -10 -10 ------- Run | Scr Mat Min Traps Triggered . | . . . Indirectly . | . . . Trap Hack Attempts . | . . . Triggered . | . . . Disarmed . | . . . Reprogrammed . | . . . Reused . | . . . Traps Extracted . | . . . Installed . | . . . Triggered . | . . . Machines | -11 -10 -10 ---------- Run | Scr Mat Min Machines Disabled . | . . . Max in Single Turn . | . . . Machines Sabotaged . | . . . Garrisons Compromised . | . . . Overloaded Fab Kills . | . . . Hacking | -11 -10 -10 --------- Run | Scr Mat Min Machines Accessed 10 | . 10 . Terminals 7 | . 7 . Fabricators . | . . . Repair Stations 1 | . 1 . Recycling Units 2 | . 2 . Scanalyzers . | . . . Garrison Access . | . . . Total Hacks 27 | . 27 . Successful 18 | . 18 . Failed 8 | . 8 . Catastrophic 1 | . 1 . Database Lockouts 1 | . 1 . Manual 9 | . 9 . Terminals 21 | . 21 . Fabricators . | . . . Repair Stations 2 | . 2 . Recycling Units 4 | . 4 . Scanalyzers . | . . . Garrison Access . | . . . Terminal Hacks 11 | . 11 . Robot Analysis 2 | . 2 . Prototype ID Bank 4 | . 4 . Terminal Index 1 | . 1 . Alert Level 1 | . 1 . Unreport Threat 2 | . 2 . Locate Traps 1 | . 1 . Fabricator Hacks . | . . . Repair Station Hacks 2 | . 2 . Scan Component 1 | . 1 . Repair 1 | . 1 . Recycling Unit Hacks 1 | . 1 . Retrieve Components 1 | . 1 . Scanalyzer . | . . . Garrison Access Hacks . | . . . Unauthorized Hacks 4 | . 4 . Terminals 4 | . 4 . Track 1 | . 1 . Botnet 2 | . 2 . Operators 1 | . 1 . Fabricators . | . . . Repair Stations . | . . . Recycling Units . | . . . Scanalyzers . | . . . Garrison Access . | . . . Data Cores Recovered . | . . . Used . | . . . Hacking Detections 8 | . 8 . Full Trace Events . | . . . Feedback Events . | . . . Feedback Blocked . | . . . Robot Schematics Acquired . | . . . Robots Built . | . . . Authchips . | . . . Time . | . . . Total Robot Build Rating . | . . . Part Schematics Acquired . | . . . Parts Built . | . . . Authchips . | . . . Time . | . . . Total Part Build Rating . | . . . Parts Repaired 1 | . 1 . Time 38 | . 38 . Parts Recycled . | . . . Recycled Matter . | . . . Retrieved Matter . | . . . Retrieved Components 10 | . 10 . Parts Scanalyzed . | . . . Part Schematics Acquired . | . . . Parts Damaged . | . . . Bothacking | -11 -10 -10 ------------ Run | Scr Mat Min Used RIF Installer . | . . . Robots Hacked . | . . . Non-combat . | . . . Combat . | . . . Robot Hacks Applied . | . . . Relay Couplers Released . | . . . Fabnet Peak Effective % . | . . . Robots Rewired . | . . . Allies Hacked . | . . . Hacks Repelled . | . . . Allies | -11 -10 -10 -------- Run | Scr Mat Min Total Allies . | . . . Largest Group . | . . . Highest-Rated Group . | . . . Highest-Rated Ally . | . . . Total Orders . | . . . Ally Attacks . | . . . Total Damage . | . . . Kills . | . . . Allies Corrupted . | . . . Allies Melted . | . . . Intel | -11 -10 -10 ------- Run | Scr Mat Min Robot Analysis Total 2 | . 2 . Derelict Logs Recovered 1 | . . 1 Drone Launches . | . . . Drone Recoveries . | . . . Exploration | -11 -10 -10 ------------- Run | Scr Mat Min Turns Passed 2084 | 80 1422 582 Spaces Moved 1480 | 53 1072 355 Core 10 | 10 . . Treads . | . . . Legs 164 | 43 121 . Wheels 1306 | . 951 355 Hover . | . . . Flight . | . . . Fastest Speed 50 | 50 95 140 Average Speed 113 | 110 105 140 Slowest Speed 215 | 120 140 215 Overloaded Moves . | . . . Propulsion Burnouts . | . . . Robots Hopped . | . . . Cave-ins Triggered . | . . . Exploration Rate (%) 57 | 3 98 71 Regions Visited 2 Branch Regions 1 Pre-discovered Areas . | . . . Known Exits Taken . | . . . Unknown Exits Taken 2 | 1 1 . Scrap Searched 1 | . . 1 Spaces Dug . | . . . Terrain Destroyed . | . . . Melee . | . . . Projectile . | . . . AOE . | . . . Terrain Rammed . | . . . Walls Destroyed . | . . . Machines Disabled . | . . . Actions | -11 -10 -10 --------- Run | Scr Mat Min Total 1743 | 69 1258 416 Wait 108 | 1 60 47 Move 1478 | 52 1071 355 Hop . | . . . Pick Up 41 | 8 33 . Fast Attach 11 | 7 4 . Attach 2 | . 1 1 Detach . | . . . Swap 10 | . 10 . Drop 23 | . 23 . Fire 66 | 1 56 9 Melee 4 | . . 4 Ram . | . . . Kick . | . . . Crush . | . . . Escape Stasis . | . . . Rewire . | . . . Trap . | . . . Miscellaneous . | . . . Route ------- -11/Scrapyard -10/Materials (discovered 5 exits: [*Mat x3] / [*Min x2]) -10/Mines History --------- Turn | Location | Event 5 | -11/Scrapyard | Discovered new exit (range 15) 81 | -11/Scrapyard | Entered Materials 300 | -10/Materials | Build established: Mutant 397 | -10/Materials | Discovered new exit (range 9) 565 | -10/Materials | Discovered new exit (range 10) 736 | -10/Materials | Discovered new exit (range 11) 868 | -10/Materials | Discovered new exit (range 7) 881 | -10/Materials | Central database locked down 1083 | -10/Materials | Repaired Imp. Heat Sink 1320 | -10/Materials | Discovered new exit (range 6) 1503 | -10/Materials | Entered Mines 1534 | -10/Mines | Met a Derelict bent on vengeance 1774 | -10/Mines | Learned Materials terminal intel 2021 | -10/Mines | Assembled infested the area 2071 | -10/Mines | Core integrity fell below 50% 2080 | -10/Mines | Core integrity fell below 20% 2085 | -10/Mines | Destroyed by as-16600 with Assembled Rifle Last Messages --------------- 01865_ Found Sml. Laser. 01865_ Found Beam Cannon. 01865_ Found 43 Matter. 01866_ Acquired 43 matter. 01867_ K-01 Serf collects debris. 02021_ ALERT: Infestation in the mines, dispatching Demolisher response squad. 02031_ YX-QQ0(g): "I WILL HAVE VENGEANCE!" 02039_ T-07 Excavator is excavating. 02063_ as-48582 destroyed. 02064_ Knocked back. 02070_ as-33739 destroyed. 02071_ Adv. Beam Cannon destroyed. 02073_ Knocked back. 02073_ T-07 Excavator is excavating. 02077_ Imp. Heat Sink destroyed. 02078_ Wheel destroyed. 02078_ System corrupted by crushing effect (+3). 02078_ T-07 Excavator is excavating. 02082_ Wheel destroyed. Map ----- +----------------------------------------------------+ | ???????????????????????# ## ##? | | ???????????????????????# ### ##?? | | ???????????????????????# #?######??? | | ???????????????????????# #?????????? | | ???????????????????????#[]#?????????? | | ???####????????????????# #?????????? | | ??## #???????????????# #?????????? | | ??# #??????????????# #?????????? | | ??# #???????####??# #?????????? | | ???# ##????? #??# #?????????? | | ????# ###???# #??# ##????????? | | ????# ##??# #??# ##???????? | | ????# ##?# #??# ##??????? | | ?????# !%### #??# #######? | | ??????## #??# ## | | ???????## #??# # | | ???????## #### #### # | | ????#### ##??## ## ## | | ???## #????## ##? | | ???# ##?????# ## #?? | | ??## % #??????# #### ##? | | ??# ###????# ####??## ## | | ?# aa #????## ##??????## | | ?# %a ##????####????????## | | ?# aaa#?????????????????## | | ?## ####@ #??????????????????#### | | ??# #???# #?????????????????????? | | ??## #????# #?????????????????????? | | ???###?????# #?????????????????????? | | ??????????? #?????????????????????? | | ??????????? #?????????????????????? | | ???????????t #?????????????????????? | | ??????????? ###?????????????????????? | | ???????????#????????????????????????? | | ????????????????????????????????????? | | ????????????????????????????????????? | | ????????????????????????????????????? | | ????????????????????????????????????? | | | | | | | | | | | | | | | | | | | | | | | | | +----------------------------------------------------+ Best States ------------- Heat Dissipation 39 Energy Generation 14 Energy Capacity 280 Matter Stores 300 Matter Capacity 300 Sight Range 16 Terrain Scan Range 16 Terrain Scan Density 10 Evasion (%) 55 Item Schematics ----------------- None Robot Schematics ------------------ None Fabricated ------------ Nothing Alien Tech Used ----------------- None Achievements -------------- None Challenges ------------ None Game ------ Seed CoordinationStasisScreen Manual? 0 Play Time 00:21:39 Cumulative 212.1 hours Start 2022.03.30 @ 15:02:46 End 2022.03.30 @ 15:24:45 Sessions 1 Manual Loads 0 Difficulty Rogue Special Mode None Game No. 194 Rogue 194 Adventurer 0 Explorer 0 Win Type - Total 0 Types 0/0/0/0/0/0/0/0/0 Lore% 41 Gallery% 49 Achievement% 36 Wizard Run 0 Options --------- ASCII 0 Keyboard 0 Movement Mouse Keybinds 0 Fullscreen 1 Font 16/SmallcapsGlow Map View 75x55 Tactical HUD 1 Map Filters NONE Filters NONE Steam 1 RUN: 7c9040db-4508-4ff5-9e11-b7e6f8ee17b2